{"text_format":"3","workbook":"xlsx","n_sheets":1,"sheets":["тестовый"],"not_rendered":{"external_links":1},"read":"whole","date_system":"1900"}

{"sheet":"тестовый","index":0,"n_rows":68,"n_cols":17,"rows_kept":68,"merged":[[0,0,0,16]]}
["Протокол по итогам муниципального этапа ВсОШ по предмету \"Английский язык\"  Атнинского муниципального района в 2019-2020 учебном году "]
["№ п/п","Муниципалитет","Полное наименование образовательного учреждения (по уставу)","Фамилия","Имя","Отчество","Класс","Дата рождения","Пол","Балл","Апеляционный балл","Итоговый балл","Максимальный балл","Статус","Фамилия, имя, отчество педагога, подготовившего участника олимпиады","Полное наименование образовательного учреждения (по уставу)","Предмет"]
[1,"Атнинский","МБОУ \"Большеатнинская СОШ\"","Гарипов ",null,null,4,null,"м",26,null,null,69,null,"Баширова Резеда Робертовна","МБОУ \"Большеатнинская СОШ\"","Английский язык"]
[2,"Атнинский","МБОУ \"Большеатнинская СОШ\"","Файзуллина",null,null,4,null,"ж",15,null,null,69,null,"Шарафиева Гульназ Ильсуровна","МБОУ \"Большеатнинская СОШ\"","Английский язык"]
[3,"Атнинский","МБОУ \"Большеатнинская СОШ\"","Зиятдинов ",null,null,4,null,"м",9,null,null,{"$f":"$M$3","v":69},null,"Баширова Резеда Робертовна","МБОУ \"Большеатнинская СОШ\"","Английский язык"]
[4,"Атнинский","МБОУ \"Большеатнинская СОШ\"","Галимзянов",null,null,4,null,"м",14,null,null,69,null,"Шарафиева Гульназ Ильсуровна","МБОУ \"Большеатнинская СОШ\"","Английский язык"]
[5,"Атнинский","МБОУ \"Большеатнинская СОШ\"","Курбанов ",null,null,4,null,"м",9,null,null,69,null,"Шарафиева Гульназ Ильсуровна","МБОУ \"Большеатнинская СОШ\"","Английский язык"]
[6,"Атнинский","МБОУ \"Кунгерская СОШ\"","Сабирова",null,null,4,null,"ж",22,null,null,69,null,"Сабирова Гульназ Наилевна","МБОУ \"Кунгерская СОШ\"","английский язык"]
[7,"Атнинский ","МБОУ \"Кушарская ООШ\"","Загидуллин ",null,null,4,null,"м",12,null,null,69,null,"Галиева Зульфия Ильясовна","МБОУ \"Кушарская ООШ\"","Английский язык"]
[8,"Атнинский ","МБОУ \"Кушарская ООШ\"","Галимзянова",null,null,4,null,"ж",15,null,null,69,null,"Галиева Зульфия Ильясовна","МБОУ \"Кушарская ООШ\"","Английский язык"]
[9," Атнинский","МБОУ \"Кубянская СОШ\"","Газизов",null,null,4,null,"м",12,null,null,69,null," Гайнутдинова Алия Рустамовна","МБОУ \"Кубянская СОШ\""," Английский язык"]
[10," Атнинский"," МБОУ \"Кубянская СОШ\"","Сибагатова",null,null,4,null,"ж",11,null,null,69,null," Гайнутдинова Алия Рустамовна"," МБОУ \"Кубянская СОШ"," Английский язык"]
[11,"Атнинский МР","МБОУ \"Кулле - Киминская ООШ имени С.Хакима\"Атнинского муниципального района РТ","Хуснутдинова ",null,null,4,null,"ж",9,null,null,69,null,"Хамидуллина Ирина Васильевна","МБОУ \"Кулле - Киминская ООШ имени С.Хакима\"Атнинского муниципального района РТ","Английский язык"]
[12,"Атнинский","МБОУ \"Нижнекуюкская ООШ\"","Халикова",null,null,4,null,"ж",10,null,null,69,null,"Хлопушин Радис Радикович","МБОУ \"Нижнекуюкская ООШ\"","Английский язык"]
[13,"Атнинский","МБОУ \"Нижнекуюкская ООШ\"","Кадыйрова",null,null,4,null,"ж",11,null,null,69,null,"Хлопушин Радис Радикович","МБОУ \"Нижнекуюкская ООШ\"","Английский язык"]
[14,"Атнинский","МБОУ \"Коморгузинская средняя общеобразовательная школа имени Шигабутдина Марджани\" Атнинского муниципального района Республики Татарстан","Мухаметшина",null,null,5,null,"ж",19,null,null,79,null,"Ахтямова Алина Султановна","МБОУ \"Коморгузинская СОШ имени Шигабутдина Марджани\" Атнинского муниципального района Республики Татарстан","Английский язык"]
[15,"Атнинский","МБОУ«Большеатнинская СОШ\"","Хакимзянов ",null,null,5,null,"м",24,null,null,{"$f":"$M$16","v":79},null,"Зиятдинова Гульсина Габдулловна","МБОУ«Большеатнинская СОШ\"","Английский язык"]
[16,"Атнинский","МБОУ«Большеатнинская СОШ\"","Гиниятуллина",null,null,5,null,"ж",27,null,null,79,null,"Зиятдинова Гульсина Габдулловна","МБОУ«Большеатнинская СОШ\"","Английский язык"]
[17,"Атнинский","МБОУ«Большеатнинская СОШ\"","Мифтахова",null,null,5,null,"ж",17,null,null,79,null,"Сабирзянова Гузель Эдуардовна","МБОУ«Большеатнинская СОШ\"","Английский язык"]
[18,"Атнинский","МБОУ«Большеатнинская СОШ\"","Галиахметов",null,null,5,null,"м",10,null,null,79,null,"Сабирзянова Гузель Эдуардовна","МБОУ«Большеатнинская СОШ\"","Английский язык"]
[19,"Атнинский ","МБОУ \"Большеменгерская ООШ\"","Зиганшина ",null,null,5,null,"ж",19,null,null,79,null,"Абдуллина Алсу Ленаровна","МБОУ \"Большеменгерская ООШ\"","Английский язык"]
[20,"Атнинский ","МБОУ \"Большеменгерская ООШ\"","Шакирова ",null,null,5,null,"ж",18,null,null,79,null,"Абдуллина Алсу Ленаровна","МБОУ \"Большеменгерская ООШ\"","Английский язык"]
[21,{"$f":"'[1]английский язык'!B4","v":"Атнинский"},{"$f":"'[1]английский язык'!C4","v":"МБОУ \"Кунгерская СОШ\""},{"$f":"'[1]английский язык'!D4","v":"Амиров "},null,null,{"$f":"'[1]английский язык'!G4","v":5},null,{"$f":"'[1]английский язык'!I4","v":"м"},21,null,null,79,null,{"$f":"'[1]английский язык'!O4","v":"Гусманова Зухра Рашитовна"},{"$f":"'[1]английский язык'!P4","v":"МБОУ \"Кунгерская СОШ\""},{"$f":"'[1]английский язык'!Q4","v":"английский язык"}]
[22,{"$f":"'[1]английский язык'!B5","v":"Атнинский"},{"$f":"'[1]английский язык'!C5","v":"МБОУ \"Кунгерская СОШ\""},{"$f":"'[1]английский язык'!D5","v":"Зарипова "},null,null,{"$f":"'[1]английский язык'!G5","v":5},null,{"$f":"'[1]английский язык'!I5","v":"ж"},27,null,null,79,null,{"$f":"'[1]английский язык'!O5","v":"Гусманова Зухра Рашитовна"},{"$f":"'[1]английский язык'!P5","v":"МБОУ \"Кунгерская СОШ\""},{"$f":"'[1]английский язык'!Q5","v":"английский язык"}]
[23," Атнинский","МБОУ \"Кубянская СОШ\"","Хафизов",null,null,5,null,"м",29,null,null,79,null," Гайнутдинова Алия Рустамовна"," МБОУ \"Кубянская СОШ"," Английский язык"]
[24," Атнинский","МБОУ \"Кубянская СОШ\"","Сафина",null,null,5,null," ж",25,null,null,79,null," Гайнутдинова Алия Рустамовна"," МБОУ \"Кубянская СОШ"," Английский язык"]
[25,"Атнинский","МБОУ \"Берескинская СОШ\"","Сабирзянова",null,null,5,null,"ж",19,null,null,79,null,"Шагиахметова Лейсан Рузалевна","МБОУ \"Берескинская СОШ\"","Английский язык"]
[26,"Атнинский МР","МБОУ \"Кулле - Киминская ООШ имени С.Хакима\"Атнинского муниципального района РТ","Закиров ",null,null,5,null,"м",15,null,null,79,null,"Хамидуллина Ирина Васильевна","МБОУ \"Кулле - Киминская ООШ имени С.Хакима\"Атнинского муниципального района РТ","Английский язык"]
[27,"Атнинский","МБОУ«Большеатнинская СОШ\"","Хайрутдинов",null,null,6,null,"м",34,null,null,{"$f":"$M$16","v":79},null,"Шарафиева Гульназ Ильсуровна","МБОУ«Большеатнинская СОШ\"","Английский язык"]
[28,"Атнинский","МБОУ«Большеатнинская СОШ\"","Урозалиев ",null,null,6,null,"м",32,null,null,79,null,"Шарафиева Гульназ Ильсуровна","МБОУ«Большеатнинская СОШ\"","Английский язык"]
[29,"Атнинский","МБОУ«Большеатнинская СОШ\"","Хакимова",null,null,6,null,"ж",37,null,null,79,null,"Шарафиева Гульназ Ильсуровна","МБОУ«Большеатнинская СОШ\"","Английский язык"]
[30,"Атнинский ","МБОУ \"Кушарская ООШ\"","Хисамиева",null,null,6,null,"ж",22,null,null,79,null,"Хашимова Инзиля Шамилевна","МБОУ \"Кушарская ООШ\"","Английский язык"]
[31,"Атнинский","МБОУ \"Берескинская СОШ\"","Касимов",null,null,6,null,"м",17,null,null,79,null,"Шагиахметова Лейсан Рузалевна","МБОУ \"Берескинская СОШ\"","Английский язык"]
[32,"Атнинский","МБОУ \"Берескинская СОШ\"","Набиуллина",null,null,6,null,"ж",13,null,null,79,null,"Шагиахметова Лейсан Рузалевна","МБОУ \"Берескинская СОШ\"","Английский язык"]
[33,"Атнинский МР","МБОУ \"Кулле - Киминская ООШ имени С.Хакима\"Атнинского муниципального района РТ","Гиниятова",null,null,6,null,"ж",23,null,null,79,null,"Хамидуллина Ирина Васильевна","МБОУ \"Кулле - Киминская ООШ имени С.Хакима\"Атнинского муниципального района РТ","Английский язык"]
[34,"Атнинский МР","МБОУ \"Кулле - Киминская ООШ имени С.Хакима\"Атнинского муниципального района РТ","Степанова ",null,null,6,null,"ж",24,null,null,79,null,"Хамидуллина Ирина Васильевна","МБОУ \"Кулле - Киминская ООШ имени С.Хакима\"Атнинского муниципального района РТ","Английский язык"]
[35,"Атнинский","МБОУ«Большеатнинская СОШ\"","Ахмеров",null,null,6,null,"м",65,null,null,79,null,"Шарафиева Гульназ Ильсуровна","МБОУ«Большеатнинская СОШ\"","Английский язык"]
[36,"Атнинский","МБОУ«Большеатнинская СОШ\"","Мухамедзянова",null,null,6,null,"ж",22,null,null,79,null,"Шарафиева Гульназ Ильсуровна","МБОУ«Большеатнинская СОШ\"","Английский язык"]
[37,"Атнинский","МБОУ \"Нижнекуюкская ООШ\"","Юсупов ",null,null,6,null,"м",13,null,null,79,null,"Хлопушин Радис Радикович","МБОУ \"Нижнекуюкская ООШ\"","Английский язык"]
[38,"Атнинский","Муниципальное бюджетное общеобразовательное учреждение \"Березинская основная общеобразовательная школа\"","Гиззатуллина",null,null,6,null,"ж",10,null,null,79,null,"Исмагилова Гульназ Фердинантовна","Муниципальное бюджетное общеобразовательное учреждение \"Березинская основная общеобразовательная школа\"","Английский язык"]
[39,"Атнинский","МБОУ«Большеатнинская СОШ\"","Садикова",null,null,7,null,"ж",33,null,null,120,null,"Зиятдинова Гульсина Габдулловна","МБОУ«Большеатнинская СОШ\"","Английский язык"]
[40,{"$f":"'[1]английский язык'!B6","v":"Атнинский"},{"$f":"'[1]английский язык'!C6","v":"МБОУ \"Кунгерская СОШ\""},{"$f":"'[1]английский язык'!D6","v":"Закирова"},null,null,{"$f":"'[1]английский язык'!G6","v":7},null,{"$f":"'[1]английский язык'!I6","v":"ж"},22,null,null,{"$f":"$M$41","v":120},null,{"$f":"'[1]английский язык'!O6","v":"Гусманова Зухра Рашитовна"},{"$f":"'[1]английский язык'!P6","v":"МБОУ \"Кунгерская СОШ\""},{"$f":"'[1]английский язык'!Q6","v":"английский язык"}]
[41,{"$f":"'[1]английский язык'!B7","v":"Атнинский"},{"$f":"'[1]английский язык'!C7","v":"МБОУ \"Кунгерская СОШ\""},{"$f":"'[1]английский язык'!D7","v":"Зиганшин"},null,null,{"$f":"'[1]английский язык'!G7","v":7},null,{"$f":"'[1]английский язык'!I7","v":"м"},16,null,null,120,null,{"$f":"'[1]английский язык'!O7","v":"Гусманова Зухра Рашитовна"},{"$f":"'[1]английский язык'!P7","v":"МБОУ \"Кунгерская СОШ\""},{"$f":"'[1]английский язык'!Q7","v":"английский язык"}]
[42,{"$f":"'[1]английский язык'!B8","v":"Атнинский"},{"$f":"'[1]английский язык'!C8","v":"МБОУ \"Кунгерская СОШ\""},{"$f":"'[1]английский язык'!D8","v":"Хакимзянова"},null,null,{"$f":"'[1]английский язык'!G8","v":7},null,{"$f":"'[1]английский язык'!I8","v":"ж"},14,null,null,120,null,{"$f":"'[1]английский язык'!O8","v":"Гусманова Зухра Рашитовна"},{"$f":"'[1]английский язык'!P8","v":"МБОУ \"Кунгерская СОШ\""},{"$f":"'[1]английский язык'!Q8","v":"английский язык"}]
[43,"Атнинский","МБОУ \"Коморгузинская СОШ имени Шигабутдина Марджани\" Атнинского муниципального района Республики Татарстан","Гафиятуллин",null,null,7,null,"м",21,null,null,120,null,"Ахтямова Алина Султановна","МБОУ \"Коморгузинская СОШ имени Шигабутдина Марджани\" Атнинского муниципального района Республики Татарстан","Английский язык"]
[44,"Атнинский МР","МБОУ \"Кулле - Киминская ООШ имени С.Хакима\"Атнинского муниципального района РТ","Гайнутдинов",null,null,7,null,"м",15,null,null,120,null,"Хамидуллина Ирина Васильевна","МБОУ \"Кулле - Киминская ООШ имени С.Хакима\"Атнинского муниципального района РТ","Английский язык"]
[45,"Атнинский","Муниципальное бюджетное общеобразовательное учреждение \"Березинская основная общеобразовательная школа\"","Галлямова",null,null,7,null,"ж",15,null,null,120,null,"Гатауллина Айзиряк Рустамовна","Муниципальное бюджетное общеобразовательное учреждение \"Березинская основная общеобразовательная школа\"","Английский язык"]
[46,"Атнинский","МБОУ«Большеатнинская СОШ\"","Вагапов",null,null,8,null,"м",36,null,null,{"$f":"$M$41","v":120},null,"Шарафиева Гульназ Ильсуровна","МБОУ«Большеатнинская СОШ\"","Английский язык"]
[47,"Атнинский","МБОУ«Большеатнинская СОШ\"","Гарифуллина",null,null,8,null,"ж",14,null,null,120,null,"Шарафиева Гульназ Ильсуровна","МБОУ«Большеатнинская СОШ\"","Английский язык"]
[48,"Атнинский ","МБОУ \"Кушарская ООШ\"","Хашимова",null,null,8,null,"ж",35,null,null,120,null,"Хашимова Инзиля Шамилевна","МБОУ \"Кушарская ООШ\"","Английский язык"]
[49,"Атнинкий","МБОУ \"Кубянская СОШ\"","Вафина",null,null,8,null,"ж",21,null,null,120,null," Гайнутдинова Алия Рустамовна","МБОУ \"Кубянская СОШ\""," Английский язык"]
[50,"Атнинкий","МБОУ \"Кубянская СОШ\"","Гатауллина",null,null,8,null,"ж",22,null,null,120,null," Гайнутдинова Алия Рустамовна","МБОУ \"Кубянская СОШ\""," Английский язык"]
[51,"Атнинский","Муниципальное бюджетное общеобразовательное учреждение \"Березинская основная общеобразовательная школа\"","Кабиров",null,null,8,null,"м",24,null,null,120,null,"Исмагилова Гульназ Фердинантовна","Муниципальное бюджетное общеобразовательное учреждение \"Березинская основная общеобразовательная школа\"","Английский язык"]
[52,"Атнинский","МБОУ«Большеатнинская СОШ\"","Хакимуллина",null,null,8,null,"ж",52,null,null,120,null,"Зиятдинова Гульсина Габдулловна","МБОУ«Большеатнинская СОШ\"","Английский язык"]
[53,"Атнинский","МБОУ«Большеатнинская СОШ\"","Низамиева",null,null,8,null,"ж",43,null,null,120,null,"Шарафиева Гульназ Ильсуровна","МБОУ«Большеатнинская СОШ\"","Английский язык"]
[54,"Атнинский","МБОУ«Большеатнинская СОШ\"","Мухаметгалиев",null,null,9,null,"м",53,null,null,125,null,"Баширова Резеда Робертовна","МБОУ«Большеатнинская СОШ\"","Английский язык"]
[55,"Атнинский","МБОУ«Большеатнинская СОШ\"","Хисматуллина",null,null,9,null,"ж",60,null,null,{"$f":"$M$56","v":125},null,"Шарафиева Гульназ Ильсуровна","МБОУ«Большеатнинская СОШ\"","Английский язык"]
[56,"Атнинский","МБОУ \"Кунгерская СОШ\"","Шигапова",null,null,9,null,"ж",16,null,null,125,null,"Гусманова Зухра Рашитовна","МБОУ \"Кунгерская СОШ\"","английский язык"]
[57,"Атнинкий","МБОУ \"Кубянская СОШ\"","Газизова",null,null,9,null,"ж",16,null,null,125,null," Гайнутдинова Алия Рустамовна","МБОУ \"Кубянская СОШ\""," Английский язык"]
[58,"Атнинский МР","МБОУ \"Кулле - Киминская ООШ имени С.Хакима\"Атнинского муниципального района РТ","Галиуллина",null,null,9,null,"ж",24,null,null,125,null,"Хамидуллина Ирина Васильевна","МБОУ \"Кулле - Киминская ООШ имени С.Хакима\"Атнинского муниципального района РТ","Английский язык"]
[59,"Атнинский","МБОУ«Большеатнинская СОШ\"","Бадиков ",null,null,10,null,"м",43,null,null,125,null,"Баширова Резеда Робертовна","МБОУ«Большеатнинская СОШ\"","Английский язык"]
[60,"Атнинский","МБОУ \"Кунгерская СОШ\"","Нурмухаметов",null,null,10,null,"м",31,null,null,125,null,"Гусманова Зухра Рашитовна","МБОУ \"Кунгерская СОШ\"","английский язык"]
[61,"Атнинский","МБОУ \"Берескинская СОШ\"","Набиуллина",null,null,10,null,"ж",26,null,null,125,null,"Шагиахметова Лейсан Рузалевна","МБОУ \"Берескинская СОШ\"","Английский язык"]
[62,"Атнинский","МБОУ \"Берескинская СОШ\"","Гиззатуллина",null,null,10,null,"ж",30,null,null,125,null,"Шагиахметова Лейсан Рузалевна","МБОУ \"Берескинская СОШ\"","Английский язык"]
[63,"Атнинский","МБОУ«Большеатнинская СОШ\"","Фидаева",null,null,11,null,"ж",44,null,null,125,null,"Баширова Резеда Робертовна","МБОУ«Большеатнинская СОШ\"","Английский язык"]
[64,"Атнинский","МБОУ«Большеатнинская СОШ\"","Хабибрахманова",null,null,11,null,"ж",39,null,null,125,null,"Баширова Резеда Робертовна","МБОУ«Большеатнинская СОШ\"","Английский язык"]
[65,"Атнинский","МБОУ \"Кунгерская СОШ\"","Галиева",null,null,11,null,"ж",61,null,null,125,null,"Гусманова Зухра Рашитовна","МБОУ \"Кунгерская СОШ\"","английский язык"]
[66,"Атнинский","МБОУ \"Кунгерская СОШ\"","Шагалиева",null,null,11,null,"ж",35,null,null,125,null,"Гусманова Зухра Рашитовна","МБОУ \"Кунгерская СОШ\"","английский язык"]